Cogmind - Beta 11.1 @@@ ROGUE MODE // 2022.05.15 @ 14:13:34 Player: K.Ioz Result: Destroyed by as-47665 with Assembled F-torch Performance ------------- Evolutions (0) 0 Regions Visited (0) 0 Robots Destroyed (0) 0 Value Destroyed (0) 0 Prototype IDs (0) 0 Alien Tech Used (0) 0 Bonus (0) 0 TOTAL SCORE: 0 Bonus ------- None Cogmind --------- Core Integrity 0/250 Matter 300/300 Energy 100/100 System Corruption 4% Temperature Cool (20) Movement Core (50) Location -11/Scrapyard Parts ------- > --- POWER (1) -------- (None) > --- PROPULSION (2) --- (None) > --- UTILITY (2) ------ (None) > --- WEAPON (2) ------- (None) > --- INVENTORY (5) ---- (None) Peak State ------------ > --- POWER ------------ Light Ion Engine > --- PROPULSION ------- (None) > --- UTILITY ---------- (None) > --- WEAPON ----------- (None) > --- INVENTORY -------- (None) [Rating: 1] Favorites ----------- Power Light Ion Engine Engine Light Ion Engine Propulsion None Utility None Weapon None Build | -11 ------- Run | Scr Slots Evolved . | . Power . | . Propulsion . | . Utility . | . Weapon . | . Parts Attached 1 | 1 Power 1 | 1 Engine 1 | 1 Core . | . Reactor . | . Propulsion . | . Treads . | . Leg . | . Wheel . | . Hover . | . Flight . | . Utility . | . Device . | . Storage . | . Processor . | . Hackware . | . Protection . | . Artifact . | . Weapon . | . Energy Gun . | . Energy Cannon . | . Ballistic Gun . | . Ballistic Cannon . | . Launcher . | . Special Weapon . | . Impact Weapon . | . Slashing Weapon . | . Piercing Weapon . | . Special Melee Weapon . | . Unidentified Prototypes . | . Parts Lost 1 | 1 Power 1 | 1 Propulsion . | . Utility . | . Weapon . | . Highest Loss Streak 1 | 1 To Critical Strikes . | . Average Slot Usage (%) . | . Naked Turns . | . Heaviest Build 3 | 3 Greatest Support 3 | 3 Greatest Overweight (x) . | . Average Overweight (x) . | . Largest Inventory Capacity 5 | 5 Average Capacity 5 | 5 Most Carried . | . Average Carried . | . Final Capacity 5 | 5 Final Carried . | . Class Distribution -------------------- None Dominant Class ---------------- None Resources | -11 ----------- Run | Scr Matter Collected 210 | 210 Remotely . | . Salvage Created . | . Parts . | . Haulers Intercepted . | . Recyclers Shooed . | . Parts Field Recycled . | . Retrieved Matter . | . Parts Self-Destructed . | . Prevented . | . Kills | -11 ------- Run | Scr Combat Hostiles Destroyed . | . Classes Destroyed . | . Best Kill Streak . | . Combat Bots Only . | . Max Kills in Single Turn . | . Gunslinging . | . Exploded . | . Melee . | . Uniques/NPCs Destroyed . | . Combat | -11 -------- Run | Scr Damage Taken 298 | 298 Core 258 | 258 Absorbed by Shields . | . Core Remaining (%) . | . Volleys Fired . | . Largest . | . Hottest . | . Shots Fired . | . Gun . | . Cannon . | . Launcher . | . Special . | . Kinetic . | . Thermal . | . Explosive . | . Electromagnetic . | . Robot Hit Streak . | . Robot Miss Streak . | . Penetration Max . | . Secondary Targets . | . Shots Hit Robots . | . Core Hits 3 | 3 Critical Kills . | . Critical Parts Destroyed . | . Critical Strikes . | . Melee Attacks . | . Impact . | . Slashing . | . Piercing . | . Sneak Attacks . | . Combat Hostiles . | . Follow-up Attacks . | . Damage Inflicted 28 | 28 Guns . | . Cannons . | . Explosions . | . Melee . | . Ramming 28 | 28 Kinetic . | . Thermal . | . Explosive . | . Electromagnetic . | . Impact . | . Slashing . | . Piercing . | . Highest Corruption 4 | 4 Average Corruption 4 | 4 Corruption Purged . | . Corruption Blocked . | . Overload Shots . | . Overflow Damage . | . Projectiles . | . Explosions . | . Melee . | . Knockbacks . | . Impact . | . Kinetic . | . Secondary . | . Self-Inflicted Damage 13 | 13 Shots . | . Rammed 6 | 6 Targets Rammed 6 | 6 Kicked . | . Crushed . | . Highest Temperature 35 | 35 Average Temperature 22 | 22 Received Heat Transfer 120 | 120 Siege Activations . | . Robots Corrupted . | . Combat Hostiles . | . Parts Fried . | . Impact Corruptions . | . Robots Melted . | . Combat Hostiles . | . Parts Melted . | . Heat Transferred . | . Parts Sabotaged . | . Parts Stolen . | . Parts Stripped . | . Power Chain Reactions . | . Missiles Intercepted . | . Alert | -11 ------- Run | Scr Peak Influence . | . Initial . | . Average . | . Maximum Alert Level . | . Low Security (%) 100 | 100 Level 1 . | . Level 2 . | . Level 3 . | . Level 4 . | . Level 5 . | . High Security . | . Max Security . | . Squads Dispatched . | . Investigation . | . Extermination . | . Reinforcement . | . Assault . | . Garrison . | . Intercept . | . Searches Triggered . | . Construction Impeded . | . Haulers Reinforced . | . Active Scanning Responses . | . Cargo Convoy Interrupts . | . Stealth | -11 --------- Run | Scr Distress Signals . | . Communications Jammed . | . Distress Signals . | . Times Spotted 20 | 20 Peak Tracking Total 20 | 20 Tactical Retreats . | . Traps | -11 ------- Run | Scr Traps Triggered . | . Indirectly . | . Trap Hack Attempts . | . Triggered . | . Disarmed . | . Reprogrammed . | . Reused . | . Traps Extracted . | . Installed . | . Triggered . | . Machines | -11 ---------- Run | Scr Machines Disabled . | . Max in Single Turn . | . Machines Sabotaged . | . Garrisons Compromised . | . Overloaded Fab Kills . | . Hacking | -11 --------- Run | Scr Machines Accessed . | . Terminals . | . Fabricators . | . Repair Stations . | . Recycling Units . | . Scanalyzers . | . Garrison Access . | . Total Hacks . | . Successful . | . Failed . | . Catastrophic . | . Database Lockouts . | . Manual . | . Terminals . | . Fabricators . | . Repair Stations . | . Recycling Units . | . Scanalyzers . | . Garrison Access . | . Terminal Hacks . | . Fabricator Hacks . | . Repair Station Hacks . | . Recycling Unit Hacks . | . Scanalyzer . | . Garrison Access Hacks . | . Unauthorized Hacks . | . Terminals . | . Fabricators . | . Repair Stations . | . Recycling Units . | . Scanalyzers . | . Garrison Access . | . Data Cores Recovered . | . Used . | . Hacking Detections . | . Full Trace Events . | . Feedback Events . | . Feedback Blocked . | . Robot Schematics Acquired . | . Robots Built . | . Authchips . | . Time . | . Total Robot Build Rating . | . Part Schematics Acquired . | . Parts Built . | . Authchips . | . Time . | . Total Part Build Rating . | . Parts Repaired . | . Time . | . Parts Recycled . | . Recycled Matter . | . Retrieved Matter . | . Retrieved Components . | . Parts Scanalyzed . | . Part Schematics Acquired . | . Parts Damaged . | . Bothacking | -11 ------------ Run | Scr Used RIF Installer . | . Robots Hacked . | . Non-combat . | . Combat . | . Robot Hacks Applied . | . Relay Couplers Released . | . Fabnet Peak Effective % . | . Robots Rewired . | . Allies Hacked . | . Hacks Repelled . | . Allies | -11 -------- Run | Scr Total Allies . | . Largest Group . | . Highest-Rated Group . | . Highest-Rated Ally . | . Total Orders . | . Ally Attacks . | . Total Damage . | . Kills . | . Allies Corrupted . | . Allies Melted . | . Intel | -11 ------- Run | Scr Robot Analysis Total . | . Derelict Logs Recovered . | . Drone Launches . | . Drone Recoveries . | . Exploration | -11 ------------- Run | Scr Turns Passed 1909 | 1909 Spaces Moved 108 | 108 Core 108 | 108 Treads . | . Legs . | . Wheels . | . Hover . | . Flight . | . Fastest Speed 50 | 50 Average Speed 50 | 50 Slowest Speed 50 | 50 Overloaded Moves . | . Propulsion Burnouts . | . Robots Hopped . | . Cave-ins Triggered . | . Exploration Rate (%) 22 | 22 Regions Visited . Branch Regions . Pre-discovered Areas . | . Known Exits Taken . | . Unknown Exits Taken . | . Scrap Searched . | . Spaces Dug . | . Terrain Destroyed . | . Melee . | . Projectile . | . AOE . | . Terrain Rammed . | . Walls Destroyed . | . Machines Disabled . | . Actions | -11 --------- Run | Scr Total 1962 | 1962 Wait 1847 | 1847 Move 108 | 108 Hop . | . Pick Up . | . Fast Attach 1 | 1 Attach . | . Detach . | . Swap . | . Drop . | . Fire . | . Melee . | . Ram 6 | 6 Kick . | . Crush . | . Escape Stasis . | . Rewire . | . Trap . | . Miscellaneous . | . Route ------- -11/Scrapyard (discovered 1 exit: [*Mat]) History --------- Turn | Location | Event 4 | -11/Scrapyard | Discovered new exit (range 15) 1899 | -11/Scrapyard | Assembled infested the area 1907 | -11/Scrapyard | Core integrity fell below 50% 1910 | -11/Scrapyard | Core integrity fell below 20% 1910 | -11/Scrapyard | Destroyed by as-47665 with Assembled F-torch Last Messages --------------- 00231_ T-07 Excavator is excavating. 00435_ K-01 Serf collects debris. 00455_ T-07 Excavator is excavating. 00460_ Slammed into T-07 Excavator. 00538_ K-01 Serf collects debris. 00671_ T-07 Excavator is excavating. 00713_ K-01 Serf collects debris. 01236_ Slammed into T-07 Excavator. 01239_ K-01 Serf collects debris. 01354_ T-07 Excavator is excavating. 01789_ K-01 Serf collects debris. 01899_ ALERT: Infestation in the scrapyard, dispatching Demolisher response squad. 01905_ Lgt. Ion Engine destroyed. 01905_ System corrupted by crushing effect (+4). 01905_ Slammed into as-44400. 01905_ Destabilizing: Core damaged (-10). 01906_ Slammed into as-44400. 01907_ Critical hit (Burn: +80). 01909_ Slammed into as-44400. Map ----- +----------------------------------------------------+ | | | | | | | | | | | | | | | | | ?????????????????????????????????????????????????? | | ?????????????????????????????????????????????????? | | ?????????????????????????????????????????????????? | | ?????????????????????????????????????????????????? | | ?????????????????????????????????????????????????? | | ??????????????????????##?????????????????????????? | | ???????????????????#? "## ??????????????????????? | | ???????????????????# " ??????????????????????? | | ???????????????????# " ??????????????????????? | | ???????????????????? " ??????????????????????? | | ????????????????????? " ???????????????????????? | | ????????????????????? " ???????????????????????? | | ?????????????????????? ???????????????????????? | | ??????????????????????#a ##########??????????????? | | ??????????????????????#a=# #??????????????? | | ??????????????????????#aa# #??????????????? | | ??????????????????????#aa# #??????????????? | | ??????????????????????#aa@ #??????????????? | | ????????????###########aa#a #??????????????? | | ???????????## aaa# #??????????????? | | ???????????# a # = #??????????????? | | ???????????# ### ###### % #??????????????? | | ???????????## ###?###????# #??????????????? | | ????????????# #??????????##########??????????????? | | ????????????# #??????????????????????????????????? | | ????????????# #??????????????????????????????????? | | ????????????# ###########????????????????????????? | | ????????????# # #????????????????????????? | | ????????????# # #????????????????????????? | | ????????????# # #????????????????????????? | | ????????????#%# #????????????????????????? | | ????# ######%# #????????????????????????? | | ????# %# #????????????????????????? | | ????# #????????????????????????? | | ????#### ### # #????????????????????????? | | ?????? ???# ###########????????????????????????? | | ???? ?????# #??????????????????????????????????? | | ?? ??????# #???#??????????????????????????????? | | ?# ????????# #?? ######?????????????????????????? | | ???????????# #? #?????????????????????????? | | ???????????# # #?????????????????????????? | | ???????????# # #?????????????????????????? | +----------------------------------------------------+ Best States ------------- Heat Dissipation 25 Energy Generation 10 Energy Capacity 125 Matter Stores 300 Matter Capacity 300 Sight Range 16 Terrain Scan Density 10 Evasion (%) 50 Item Schematics ----------------- None Robot Schematics ------------------ None Fabricated ------------ Nothing Alien Tech Used ----------------- None Achievements -------------- None Challenges ------------ None Game ------ Seed ZioniteChainTearclaws Manual? 0 Play Time 00:05:02 Cumulative 181.6 hours Start 2022.05.15 @ 14:10:53 End 2022.05.15 @ 14:13:34 Sessions 0 Manual Loads 0 Difficulty Rogue Special Mode None Game No. 130 Rogue 97 Adventurer 0 Explorer 33 Win Type - Total 4 Types 4/0/0/0/0/0/0/0/0 Lore% 59 Gallery% 63 Achievement% 58 Wizard Run 0 Options --------- ASCII 1 Keyboard 1 Movement Vi Keybinds 0 Fullscreen 1 Font 18/TerminusBold Map View 76x50 Tactical HUD 1 Map Filters SWAP Filters LOW_CONTRAST(47,30,31)|SWAP Steam 1 RUN: d6d92b5e-0280-4fbd-a282-fba7ef6dcb23